{"text_format":"1","workbook":"xlsx","n_sheets":1,"sheets":["WALC Customers"],"not_rendered":{"charts":0,"images":1,"macros":1,"external_links":0,"defined_names":3,"comments":0,"pivot_tables":0},"unopened":[],"bounds":{"document_bytes":16777216,"sheet_cells":100000,"rows_first":2000,"rows_last":500,"rows_between":2000,"halvings":0,"cell_chars":16384,"cell_head_chars":4096},"cells_cut":0,"cells_raw":0,"read":"whole","date_system":"1900"}

{"sheet":"WALC Customers","index":0,"n_rows":40,"n_cols":33,"rows_kept":40,"cut":false,"hidden":false,"merged":[[12,2,12,9],[0,2,0,26],[7,0,7,1],[8,0,8,1],[2,2,2,26],[4,2,4,23],[8,2,8,9],[9,2,9,9],[10,2,10,9],[1,2,1,26],[39,0,39,26],[7,14,10,26],[12,0,12,1],[36,0,36,26],[34,0,34,26],[14,3,14,26],[37,0,37,7],[9,0,9,1],[10,0,10,1],[7,2,7,9]]}
[null,null,"Western Area Power Administration"]
[null,null,"Desert Southwest Region - WALC"]
[null,null,"Network Integrated Transmission Service"]
[]
[null,null,"DNR Daily Undesignation of Network Resources or Resources Designated for Service to Native Load"]
[]
[]
["Network Customer",null,"Electrical District No. 2",null,null,null,null,null,null,null,null,null,null,null,"By submitting this form, customer attests that each resource specified for temporary un-designation herein is currently a designated resource and:  (a) the customer owns the resource or has committed to purchase power pursuant to an executed contract, and (b) the resource does not include any capacity that is committed for sale to third party load or otherwise cannot be called upon to meet the Network Customer’s Network Load on a non-interruptible basis."]
["Name",null,"Day Ahead Trader"]
["Phone",null,"602-605-2666"]
["Today's Date",null,"2013-12-06"]
[]
["DATE OF UN-DESIGNATION",null,"2013-12-09"]
[]
[null,null,null,"Resource Un-designation Amounts (MW)"]
[null,"Resource Name and TSR #","Designated Capacity","HE\n0100","HE\n0200","HE\n0300","HE\n0400","HE\n0500","HE\n0600","HE\n 0700","HE\n0800","HE \n0900","HE\n1000","HE\n1100","HE\n1200","HE\n1300","HE\n1400","HE\n1500","HE\n1600","HE\n1700","HE\n1800","HE\n1900","HE\n2000","HE\n2100","HE\n2200","HE\n2300","HE\n2400",null,null,"ED2","AMPS","Active Resource  List","Active Customer"]
[1,"PPA w/Shell North America (75596585)","13 MW",2,1,2,1,2,1,2,2,1,2,1,2,1,2,2,2,1,2,2,2,2,1,1,2,{"$f":"SUM(D17:AA17)","v":39},null,"PPA w/Barclays Bank PLC (73896948)","PPA w/Powerex (73456532)",{"$f":"IF($C$8=\"Electrical District No. 2\",AD17,IF($C$8=\"Aha-Macav Resources\",AE17,\"\"))","v":"PPA w/Barclays Bank PLC (73896948)"},"Electrical District No. 2"]
[{"$f":"A17+1","v":2},null,null,null,null,null,null,null,null,null,null,null,null,null,null,null,null,null,null,null,null,null,null,null,null,null,null,{"$f":"SUM(D18:AA18)","v":0},null,"PPA w/Shell North America (74731035)",null,{"$f":"IF($C$8=\"Electrical District No. 2\",AD18,IF($C$8=\"Aha-Macav Resources\",\"\",\"\"\"\"))","v":"PPA w/Shell North America (74731035)"},"Aha-Macav Resources"]
[{"$f":"A18+1","v":3},null,null,null,null,null,null,null,null,null,null,null,null,null,null,null,null,null,null,null,null,null,null,null,null,null,null,null,null,"Aepco (71479692)",null,"PPA w/Aepco (71479692)"]
[4,null,null,null,null,null,null,null,null,null,null,null,null,null,null,null,null,null,null,null,null,null,null,null,null,null,null,null,null,"PPA w/Shell North America (75596585)",null,{"$f":"IF($C$8=\"Electrical District No. 2\",AD20,IF($C$8=\"Aha-Macav Resources\",\"\",\"\"\"\"))","v":"PPA w/Shell North America (75596585)"},"Electrical District No. 2 Resources"]
[5,null,null,null,null,null,null,null,null,null,null,null,null,null,null,null,null,null,null,null,null,null,null,null,null,null,null,null,null,"PPA w/Shell North America (73991308)",null,{"$f":"IF($C$8=\"Electrical District No. 2\",AD21,IF($C$8=\"Aha-Macav Resources\",\"\",\"\"\"\"))","v":"PPA w/Shell North America (73991308)"},"Electrical District No. 2 Resources"]
[6]
[7]
[8]
[9]
[10]
[11]
[12]
[13]
[14]
[15]
[]
["Total",null,{"$f":"SUM(C16:C31)","v":0},{"$f":"SUM(D17:D31)","v":2},{"$f":"SUM(E17:E31)","v":1},2,1,2,1,2,2,1,2,1,2,1,2,2,2,1,2,2,2,2,1,1,2]
[]
["Instructions: Insert the date for un-designation where indicated above.  Insert additional rows as necessary.  Hours are identified along the top row.  Specify the resource capacity, in megawatts, to be un-designated for each hour.  Cells left blank shall mean an un-designation amount of zero for that hour.  The full capacity of each resource shall be re-designated at the conclusion of HE2400."]
[]
["Fax form to: (602) 605-2411"]
["Real-Time: (602) 605-2511 or Pre-Schedule (602) 605-2710"]
[]
["Please email form to: steward@wapa.gov; walcipp@wapa.gov; benally@wapa.gov; walcpreschedule@wapa.gov"]